bitfinex-derivatives/quotes_ETHF0:USTF0_20241004
["timestamp","ask_amount","ask_price","bid_price","bid_amount"]
[1728071409586,0.41184,2428.3,2428.1,0.41185]
[1728071409991,0.8304,2428.4,2428.1,0.41185]
[1728071410192,0.41183,2428.3,2428.2,0.422]
[1728071410391,0.8304,2428.4,2428.2,0.422]
[1728071410392,0.4266,2428.4,2428.2,0.422]
[1728071410583,3.635,2428.6,2428.3,0.81712]
[1728071410788,0.4118,2428.5,2428.3,1.20552]
[1728071411390,1.25419,2428.6,2428.3,1.20552]
[1728071411585,0.41179,2428.5,2428.3,0.7937]
[1728071411895,0.8424,2428.6,2428.3,1.20551]
[1728071412195,1.25418,2428.6,2428.3,1.20551]
[1728071412593,0.4118,2428.5,2428.3,0.7937]
[1728071412890,1.25419,2428.6,2428.3,1.20552]
[1728071413303,0.41181,2428.4,2428.3,0.4053]
[1728071413487,0.41185,2428.2,2428.0,0.79847]
[1728071413689,0.8423,2428.3,2428.0,0.7902]
[1728071413895,0.4,2428.2,2428.0,0.4036]
[1728071414189,0.41186,2428.1,2428.0,0.4036]
[1728071414388,0.81186,2428.2,2428.0,0.4036]
[1728071414592,0.41186,2428.1,2428.0,0.4036]
[1728071415087,0.81185,2428.2,2428.0,0.81547]
[1728071415695,0.41184,2428.2,2428.0,0.81547]
[1728071415890,0.4198,2428.3,2428.0,0.81547]
[1728071416097,0.41185,2428.2,2428.0,0.4036]
[1728071416402,0.41186,2428.2,2428.0,0.81547]
[1728071416895,0.4198,2428.3,2428.0,0.81547]
[1728071417205,0.83164,2428.3,2428.1,0.41185]
[1728071417597,0.41185,2428.2,2428.0,0.81547]
[1728071418102,0.83163,2428.3,2428.1,0.41185]
[1728071418492,0.83163,2428.3,2428.0,0.4036]
[1728071418697,0.41184,2428.2,2428.0,0.81547]
[1728071420501,0.41184,2428.2,2428.0,0.81548]
[1728071420713,0.4198,2428.3,2428.0,0.4036]
[1728071421007,0.41184,2428.2,2428.0,0.81547]
[1728071422806,0.83164,2428.3,2428.0,0.81547]
[1728071423002,0.41185,2428.2,2428.0,0.81547]
[1728071423202,0.4198,2428.3,2428.0,0.4036]
[1728071423408,0.41185,2428.2,2428.0,0.81547]
[1728071423712,0.4198,2428.3,2428.0,0.81547]
[1728071424007,0.83164,2428.3,2428.0,0.81547]
[1728071424201,0.83164,2428.3,2428.0,0.4036]
[1728071424510,0.83164,2428.3,2428.1,0.41186]
[1728071425607,0.4198,2428.3,2428.0,0.4036]
[1728071425810,0.41186,2428.1,2428.0,0.4036]
[1728071426307,0.41188,2428.0,2427.9,1.8997]
[1728071426507,1.25278,2428.0,2427.9,1.8997]
[1728071426707,1.25278,2428.0,2427.9,2.31159]
[1728071427001,0.8409,2428.0,2427.9,1.8997]
[1728071427406,0.8409,2428.0,2427.9,2.31159]
[1728071427812,1.25278,2428.0,2427.9,2.31159]
[1728071428011,1.25278,2428.0,2427.9,1.8997]
[1728071428218,6.4393,2428.0,2427.5,3.2078]
[1728071428511,0.41195,2427.6,2427.5,4.87925]
[1728071428710,0.41195,2427.6,2427.5,4.87926]
[1728071428910,1.48,2427.8,2427.5,4.4673]
[1728071429213,0.41195,2427.6,2427.5,4.4673]
[1728071429414,2.5098,2427.8,2427.5,4.4673]
[1728071429612,0.4066,2427.7,2427.5,4.4673]
[1728071429804,0.81853,2427.7,2427.6,0.41195]
[1728071430314,0.41195,2427.6,2427.5,1.2595]
[1728071431411,2.29854,2427.7,2427.5,1.67146]
[1728071432007,1.8866,2427.7,2427.5,1.2595]
[1728071432207,0.41198,2427.5,2427.3,1.89198]
[1728071432410,0.41198,2427.5,2427.3,1.63038]
[1728071432714,0.82738,2427.4,2427.3,1.63038]
[1728071432918,0.82738,2427.4,2427.3,0.8066]
[1728071433510,0.82738,2427.4,2427.3,0.4049]
[1728071433816,0.41201,2427.2,2427.1,0.4017]
[1728071434116,0.41201,2427.3,2427.1,1.21862]
[1728071434303,0.41201,2427.3,2427.1,0.8066]
[1728071434508,2.3212,2427.4,2427.2,0.412]
[1728071434706,0.4154,2427.4,2427.3,0.412]
[1728071434916,0.82738,2427.4,2427.3,0.412]
[1728071435517,0.4216,2427.6,2427.3,1.48]
[1728071435722,0.41195,2427.6,2427.5,0.41196]
[1728071436315,3.2078,2427.7,2427.5,1.22706]
[1728071436505,3.2078,2427.7,2427.6,1.89195]
[1728071437510,3.2078,2427.7,2427.6,0.41195]
[1728071437914,0.4119,2427.9,2427.8,0.41191]
[1728071438116,3.61968,2428.0,2427.5,4.0251]
[1728071439009,5.47346,2428.6,2427.9,3.21]
[1728071439213,5.02496,2428.6,2428.0,1.2209]
[1728071439416,0.41184,2428.3,2428.1,0.41185]
[1728071439720,0.41184,2428.2,2428.1,0.41185]
[1728071439917,1.02949,2428.5,2428.2,0.41184]
[1728071440220,0.41182,2428.4,2428.2,0.41184]
[1728071440418,1.02949,2428.5,2428.2,0.41184]
[1728071440621,0.41183,2428.3,2428.2,0.41184]
[1728071441222,0.41183,2428.3,2428.1,0.41185]
[1728071441431,0.41182,2428.4,2428.2,0.41184]
[1728071441617,0.41182,2428.4,2428.0,4.4287]
[1728071441618,0.41184,2428.3,2428.1,0.41185]
[1728071444422,3.21,2428.4,2428.0,1.2209]
[1728071444616,0.41186,2428.1,2428.0,1.2209]
[1728071446223,1.22735,2428.2,2428.0,1.63277]
[1728071446414,1.22736,2428.2,2428.0,1.63277]
[1728071446720,0.41186,2428.1,2428.0,1.2209]
[1728071448320,0.81334,2428.2,2428.1,0.41186]
[1728071448523,0.4015,2428.2,2428.0,1.2209]
[1728071448716,0.4015,2428.2,2428.0,1.63277]
[1728071449027,0.81336,2428.2,2428.0,1.63277]
[1728071449415,0.4015,2428.2,2428.0,1.63277]
[1728071449617,0.41186,2428.1,2428.0,1.63277]
[1728071449924,0.41186,2428.1,2428.0,0.7953]
[1728071450122,0.41186,2428.1,2427.8,0.395]
[1728071450123,0.41189,2427.9,2427.8,0.395]
[1728071450319,0.41189,2427.9,2427.8,0.8145]
[1728071450528,0.41191,2427.8,2427.7,3.2078]
[1728071452021,7.74111,2427.8,2427.7,3.2078]
[1728071454922,13.74111,2427.8,2427.7,3.2078]
[1728071455427,7.74111,2427.8,2427.7,3.2078]
[1728071456927,0.41196,2427.5,2427.4,0.83148]
[1728071457626,0.41196,2427.6,2427.4,0.83148]
[1728071458725,0.8416,2427.7,2427.4,0.4195]
[1728071459029,0.41196,2427.5,2427.4,0.4195]
[1728071459330,0.41196,2427.6,2427.4,0.83147]
[1728071459520,0.41196,2427.5,2427.4,0.83147]
[1728071461736,0.41196,2427.6,2427.4,0.83147]
[1728071462030,0.8416,2427.7,2427.4,0.83147]
[1728071462233,0.41196,2427.5,2427.4,0.83147]
[1728071463527,0.41196,2427.5,2427.4,0.4195]
[1728071463729,0.41198,2427.4,2427.3,0.4091]
[1728071463938,0.41198,2427.4,2427.2,3.5998]
[1728071463939,0.412,2427.3,2427.2,3.2078]
[1728071464142,1.2298,2427.3,2427.2,3.61981]
[1728071466427,1.2298,2427.3,2427.2,3.2078]
[1728071470336,1.2298,2427.3,2426.9,0.4904]
[1728071470337,0.41205,2427.0,2426.9,0.096]
[1728071470637,0.41208,2426.8,2426.7,1.1783]
[1728071470832,0.41208,2426.8,2426.7,0.3888]
[1728071471439,3.63208,2426.8,2426.7,0.3888]
[1728071473835,3.2078,2427.1,2426.9,0.41205]
[1728071474034,3.2078,2427.1,2427.0,0.82095]
[1728071474940,3.2078,2427.1,2427.0,8.16095]
[1728071475134,4.0314,2427.6,2427.3,0.41199]
[1728071475331,1.23556,2427.6,2427.1,0.8244]
[1728071475634,1.23556,2427.6,2427.3,0.41198]
[1728071476235,0.8236,2427.6,2427.3,0.41198]
[1728071476435,0.41196,2427.5,2427.3,0.41198]
[1728071477036,1.23555,2427.6,2427.3,0.41198]
[1728071477335,0.41197,2427.5,2427.3,0.41198]
[1728071477833,3.22,2427.4,2427.1,1.23642]
[1728071478139,0.41201,2427.2,2427.1,0.8244]
[1728071478535,4.4539,2427.6,2427.1,0.8244]
[1728071478536,7.2514,2427.6,2427.1,0.8244]
[1728071478841,0.41197,2427.5,2427.2,0.412]
[1728071479031,0.41199,2427.4,2427.1,1.23642]
[1728071479337,0.41199,2427.4,2427.1,0.8244]
[1728071479644,0.41199,2427.4,2427.2,0.41201]
[1728071480236,0.41196,2427.5,2427.1,1.23641]
[1728071480436,0.41199,2427.4,2427.2,0.41201]
[1728071481440,7.2514,2427.6,2427.2,0.41201]
[1728071481839,0.41199,2427.4,2427.2,0.41201]
[1728071483735,0.41198,2427.5,2427.2,0.41201]
[1728071484137,0.41198,2427.5,2427.3,0.41199]
[1728071484339,7.2514,2427.6,2427.1,0.8244]
[1728071484638,0.41199,2427.4,2427.2,0.41201]
[1728071486046,0.41197,2427.5,2427.3,0.41199]
[1728071486435,0.41198,2427.4,2427.2,0.41201]
[1728071486640,7.2514,2427.6,2427.2,0.41201]
[1728071486845,0.41197,2427.5,2427.2,0.41201]
[1728071489245,0.41198,2427.4,2427.2,0.412]
[1728071490045,7.2514,2427.6,2427.1,0.8244]
[1728071490546,0.41197,2427.5,2427.3,0.41199]
[1728071490840,0.41196,2427.5,2427.1,0.8244]
[1728071491246,0.41196,2427.5,2427.3,0.41199]
[1728071491443,0.41199,2427.4,2427.2,0.412]
[1728071491744,7.6662,2427.6,2427.1,1.23642]
[1728071491939,0.41198,2427.4,2427.2,0.41201]
[1728071492240,7.6662,2427.6,2427.1,0.8244]
[1728071492440,0.41197,2427.5,2427.3,0.41198]
[1728071492742,0.41197,2427.5,2427.4,0.4148]
[1728071498853,0.412,2427.3,2427.1,1.23642]
[1728071499046,3.632,2427.3,2427.1,1.23642]
[1728071499245,3.22,2427.3,2427.1,1.23642]
[1728071499447,3.22,2427.3,2427.2,0.41201]
[1728071499849,3.22,2427.3,2427.1,0.8244]
[1728071500047,3.632,2427.3,2427.1,1.23642]
[1728071500454,0.4174,2427.2,2426.9,0.3974]
[1728071500644,1.24103,2427.2,2426.9,1.22846]
[1728071500843,0.829,2427.2,2426.9,1.22846]
[1728071501154,1.24103,2427.2,2426.9,0.8164]
[1728071501339,0.829,2427.2,2426.9,0.8164]
[1728071501543,3.22,2427.1,2426.9,0.8164]
[1728071501748,0.4174,2427.2,2426.9,0.8164]
[1728071501953,4.66154,2427.5,2426.9,0.8164]
[1728071502250,0.41201,2427.3,2427.1,0.41203]
[1728071502648,0.41201,2427.3,2427.2,0.3914]
[1728071502850,4.0517,2427.5,2427.2,0.3914]
[1728071503151,4.46368,2427.5,2427.3,0.41199]
[1728071503348,4.0517,2427.5,2427.3,0.8211]
[1728071503550,0.41198,2427.4,2427.3,0.8211]
[1728071507458,0.41198,2427.4,2427.1,0.41202]
[1728071507459,0.41204,2427.1,2426.8,3.71587]
[1728071507657,1.89205,2427.0,2426.9,0.7944]
[1728071508658,1.89205,2427.0,2426.9,0.3953]
[1728071509657,3.63205,2427.0,2426.9,0.3953]
[1728071512563,3.22,2427.0,2426.9,0.80736]
[1728071512763,3.63203,2427.2,2426.9,0.80736]
[1728071512965,3.63203,2427.2,2427.0,0.4218]
[1728071513258,0.41203,2427.1,2427.0,0.4218]
[1728071516060,3.22,2427.2,2427.0,0.4218]
[1728071516264,3.63202,2427.2,2427.0,0.4218]
[1728071517059,3.22,2427.2,2427.0,0.4218]
[1728071517262,0.41203,2427.1,2427.0,0.4218]
[1728071520170,3.22,2427.2,2427.0,0.4218]
[1728071520370,0.41203,2427.2,2427.0,0.83384]
[1728071521574,0.41203,2427.2,2427.0,0.4218]
[1728071521974,0.41203,2427.2,2427.0,0.83384]
[1728071522769,0.8303,2427.3,2427.1,0.41202]
[1728071522963,3.2078,2427.6,2427.2,0.4106]
[1728071523167,3.61976,2427.6,2427.3,0.41199]
[1728071523364,3.2078,2427.6,2427.5,0.41196]
[1728071523569,0.41192,2427.8,2427.5,0.41196]
[1728071523777,0.41192,2427.8,2427.6,0.4106]
[1728071524173,3.63192,2427.8,2427.7,0.4254]
[1728071529783,1.89192,2427.8,2427.7,0.4254]
[1728071540492,0.41196,2427.5,2427.4,4.03687]
[1728071540786,1.89196,2427.5,2427.4,4.03687]
[1728071540983,1.89196,2427.5,2427.4,8.15607]
[1728071541380,1.48,2427.5,2427.4,8.15607]
[1728071541589,1.89196,2427.5,2427.4,8.15607]
[1728071541890,1.48,2427.5,2427.4,8.15607]
[1728071545083,1.48,2427.5,2427.4,4.94827]
[1728071546586,1.89195,2427.6,2427.4,4.5363]
[1728071546785,1.89195,2427.6,2427.5,0.41196]
[1728071547892,0.41196,2427.5,2427.4,0.82907]
[1728071548288,0.41196,2427.5,2427.4,4.94827]
[1728071548788,1.89196,2427.6,2427.5,0.41196]
[1728071549588,1.89196,2427.6,2427.3,3.6154]
[1728071549589,1.48,2427.6,2427.3,3.6154]
[1728071549791,0.41198,2427.4,2427.3,0.4076]
[1728071550000,0.41198,2427.4,2427.3,0.8196]
[1728071550296,0.82628,2427.4,2427.3,0.4076]
[1728071550595,0.82628,2427.4,2427.3,0.8196]
[1728071550794,0.82628,2427.4,2427.3,0.4076]
[1728071550985,4.5343,2427.4,2426.8,3.3038]
[1728071551186,0.41206,2427.0,2426.9,0.4193]
[1728071551392,1.48,2426.9,2426.6,0.096]
[1728071551585,3.22,2426.8,2426.5,0.4193]
[1728071551789,3.22,2426.8,2426.7,0.41209]
[1728071552084,3.63208,2426.8,2426.6,0.4006]
[1728071552284,3.63208,2426.8,2426.6,0.8127]
[1728071553296,3.63209,2426.8,2426.6,0.81271]
[1728071554698,3.63208,2426.8,2426.6,0.81271]
[1728071560497,3.63208,2426.8,2426.7,0.4121]
[1728071562099,0.41208,2426.8,2426.7,0.4121]
[1728071562295,0.8472,2426.9,2426.6,0.4006]
[1728071562501,1.25928,2426.9,2426.7,0.41209]
[1728071562695,0.8472,2426.9,2426.8,0.41208]
[1728071563704,0.8472,2426.9,2426.7,0.41209]
[1728071563705,1.25928,2426.9,2426.7,0.41209]
[1728071564099,1.25928,2426.9,2426.6,0.4006]
[1728071564404,0.8472,2426.9,2426.8,0.41208]
[1728071565305,1.25927,2426.9,2426.7,0.41209]
[1728071565700,1.25927,2426.9,2426.6,0.4006]
[1728071565900,1.25927,2426.9,2426.8,0.41208]
[1728071567400,0.8472,2426.9,2426.8,0.41208]
[1728071568596,0.8472,2426.9,2426.6,0.4006]
[1728071568801,0.8472,2426.9,2426.8,0.41208]
[1728071569807,1.25927,2426.9,2426.6,0.4006]
[1728071570009,1.25927,2426.9,2426.8,0.41208]
[1728071570206,0.8472,2426.9,2426.8,0.41208]
[1728071570406,1.25927,2426.9,2426.7,0.41209]
[1728071571198,0.8472,2426.9,2426.6,0.4006]
[1728071571400,0.41209,2426.8,2426.6,0.81271]
[1728071571605,0.4121,2426.7,2426.6,0.4006]
[1728071571812,1.8921,2426.7,2426.6,0.4006]
[1728071572206,1.8921,2426.7,2426.6,0.81271]
[1728071572407,1.48,2426.7,2426.6,0.81271]
[1728071574414,1.8921,2426.7,2426.6,0.4006]
[1728071576007,1.8921,2426.7,2426.5,0.83143]
[1728071576205,0.3959,2426.6,2426.5,0.83143]
[1728071580606,0.3959,2426.6,2426.1,0.096]
[1728071580607,5.9967,2426.6,2426.1,0.096]
[1728071580911,1.48,2426.2,2426.1,1.2402]
[1728071581110,1.89215,2426.4,2426.1,0.828]
[1728071581322,1.89215,2426.4,2426.2,0.41217]
[1728071582019,1.89216,2426.4,2426.2,0.41217]
[1728071582314,0.3907,2426.3,2426.2,0.41217]
[1728071584116,0.3907,2426.3,2426.2,0.41218]
[1728071585012,0.3907,2426.3,2426.1,0.828]
[1728071585409,1.48,2426.2,2426.1,0.828]
[1728071585605,1.89218,2426.2,2426.1,1.24019]
[1728071586010,1.48,2426.2,2426.1,1.24019]
[1728071587614,0.80288,2426.3,2426.2,0.41218]
[1728071587615,1.8707,2426.3,2426.2,0.41218]
[1728071588313,0.3907,2426.3,2426.2,0.41218]
[1728071590021,0.3907,2426.3,2426.1,0.828]
[1728071590226,0.80287,2426.3,2426.2,0.41218]
[1728071590423,0.3907,2426.3,2426.2,0.41218]
[1728071591022,0.3907,2426.3,2426.1,1.24019]
[1728071591023,0.41218,2426.2,2426.1,1.24019]
[1728071591414,1.8707,2426.3,2426.1,1.24019]
[1728071591615,2.28287,2426.3,2426.1,1.24019]
[1728071592216,2.28287,2426.3,2426.1,0.828]
[1728071592415,2.28287,2426.3,2426.2,0.41218]
[1728071594528,2.28288,2426.3,2426.1,0.828]
[1728071594827,2.28288,2426.3,2426.1,1.24018]
[1728071595027,2.28288,2426.3,2426.2,0.41218]
[1728071595923,1.8707,2426.3,2426.1,1.24019]
[1728071596325,0.41218,2426.2,2426.1,1.24019]
[1728071596521,1.89217,2426.3,2426.2,0.41218]
[1728071597925,0.41218,2426.2,2426.1,1.24019]
[1728071598120,1.48,2426.3,2426.1,0.828]
[1728071598326,0.41218,2426.2,2426.1,1.24019]
[1728071598831,1.89218,2426.3,2426.2,0.41218]
[1728071599031,1.48,2426.3,2426.1,0.828]
[1728071599231,1.89218,2426.3,2426.1,1.24018]
[1728071599832,0.41218,2426.2,2426.1,1.24018]
[1728071601126,0.41218,2426.2,2426.1,0.828]
[1728071601430,1.89218,2426.2,2426.1,0.4114]
[1728071603727,1.48,2426.2,2426.0,0.41221]
[1728071603930,1.2335,2426.1,2426.0,0.41221]
[1728071604234,0.8213,2426.1,2426.0,0.41221]
[1728071604434,1.2335,2426.1,2426.0,0.41221]
[1728071604828,0.8213,2426.1,2426.0,0.41221]
[1728071607347,0.41216,2426.4,2426.3,0.41216]
[1728071607538,1.48,2426.5,2426.1,0.3989]
[1728071608140,1.89213,2426.5,2426.4,0.41215]
[1728071608348,3.61985,2427.0,2426.8,0.41207]
[1728071608552,0.4266,2426.9,2426.5,2.7159]
[1728071608762,1.48,2426.8,2426.7,0.41209]
[1728071614656,0.4121,2426.7,2426.5,1.64803]
[1728071614851,1.48,2426.6,2426.5,1.2359]
[1728071615156,1.89211,2426.6,2426.5,1.2359]
[1728071615355,1.48,2426.6,2426.5,1.2359]
[1728071615653,1.48,2426.6,2426.5,1.64803]
[1728071616147,1.89211,2426.6,2426.5,1.64803]
[1728071618454,1.48,2426.6,2426.5,1.64803]
[1728071618657,1.48,2426.6,2426.5,1.2359]
[1728071618957,1.48,2426.6,2426.5,1.64803]
[1728071620052,1.89211,2426.6,2426.5,1.64803]
[1728071621756,1.48,2426.6,2426.5,1.64803]
[1728071625468,1.48,2426.7,2426.5,1.2359]
[1728071625668,1.48,2426.7,2426.6,0.4121]
[1728071628557,0.83867,2426.9,2426.6,0.4121]
[1728071628558,0.83867,2426.9,2426.8,0.41208]
[1728071628763,0.4266,2426.9,2426.8,0.41208]
[1728071629368,0.83866,2426.9,2426.8,0.41208]
[1728071629662,0.4266,2426.9,2426.8,0.41208]
[1728071630867,0.83866,2426.9,2426.8,0.41208]
[1728071631365,0.4266,2426.9,2426.8,0.41208]
[1728071631960,0.83866,2426.9,2426.7,0.41209]
[1728071632166,1.48,2426.8,2426.7,0.41209]
[1728071633069,1.89208,2426.8,2426.7,0.41209]
[1728071633659,1.48,2426.8,2426.7,0.41209]
[1728071633864,1.89208,2426.8,2426.7,0.41209]
[1728071634066,1.48,2426.8,2426.7,0.41209]
[1728071634370,1.89208,2426.8,2426.7,0.41209]
[1728071634675,1.48,2426.8,2426.7,0.41209]
[1728071634872,1.89208,2426.8,2426.7,0.41209]
[1728071635366,1.89208,2426.8,2426.6,0.4121]
[1728071635571,1.48,2426.8,2426.5,1.2359]
[1728071635774,1.48,2426.6,2426.5,1.64802]
[1728071635964,1.48,2426.6,2426.2,7.4728]
[1728071636161,1.48,2426.6,2426.4,0.41214]
[1728071636162,0.8217,2426.5,2426.4,0.41214]
[1728071636369,1.23383,2426.5,2426.4,0.41214]
[1728071636972,0.8217,2426.5,2426.4,0.41214]
[1728071637466,1.48,2426.6,2426.2,4.0307]
[1728071637771,1.89212,2426.6,2426.5,0.41213]
[1728071638370,1.89212,2426.6,2426.2,4.0307]
[1728071638569,1.89212,2426.6,2426.5,0.41213]
[1728071638770,1.48,2426.6,2426.5,0.41213]
[1728071640372,0.4127,2426.7,2426.6,0.41211]
[1728071640576,0.4128,2426.9,2426.3,1.48]
[1728071640577,0.82486,2426.9,2426.8,0.41208]
[1728071640786,0.4128,2426.9,2426.8,0.41208]
[1728071642068,1.89206,2427.0,2426.8,0.41208]
[1728071642271,1.89206,2427.0,2426.7,0.4121]
[1728071642472,1.89206,2427.0,2426.9,0.41206]
[1728071642676,0.41206,2426.9,2426.6,1.2029]
[1728071642879,1.89209,2426.8,2426.7,0.41209]
[1728071643177,1.48,2426.8,2426.7,0.41209]
[1728071644980,0.41205,2427.0,2426.9,0.41205]
[1728071646077,0.41205,2427.0,2426.6,3.71319]
[1728071646381,0.41205,2427.0,2426.9,0.41206]
[1728071646791,0.41205,2427.0,2426.6,3.71319]
[1728071646792,2.302,2427.1,2426.6,1.2029]
[1728071647084,0.41209,2426.8,2426.7,0.41209]
[1728071647287,1.89207,2426.9,2426.8,0.41208]
[1728071648579,1.89206,2426.9,2426.8,0.41208]
[1728071650279,0.4091,2427.2,2427.1,0.41203]
[1728071650280,0.82112,2427.2,2427.1,0.41203]
[1728071650479,0.41202,2427.2,2427.1,0.41203]
[1728071650985,2.93027,2427.4,2427.0,0.8403]
[1728071650986,0.41203,2427.1,2427.0,0.8403]
[1728071651184,1.89203,2427.1,2427.0,0.8403]
[1728071651380,1.89203,2427.1,2427.0,1.25235]
[1728071652184,1.48,2427.1,2427.0,1.25235]
[1728071652578,1.8754,2427.1,2427.0,1.25235]
[1728071654587,2.28743,2427.1,2427.0,1.25235]
[1728071655280,0.3954,2427.1,2427.0,1.25235]
[1728071655488,1.89202,2427.2,2427.1,0.41203]
[1728071657785,1.48,2427.2,2427.1,0.41203]
[1728071657990,1.89202,2427.2,2427.0,1.25234]
[1728071659088,1.48,2427.2,2427.0,0.8403]
[1728071659295,1.48,2427.1,2427.0,0.422]
[1728071659588,1.48,2427.1,2427.0,0.83405]
[1728071659589,1.8773,2427.1,2427.0,0.83405]
[1728071660187,1.8773,2427.1,2427.0,0.41205]
[1728071660389,0.3973,2427.1,2427.0,0.41205]
[1728071661283,0.3973,2427.1,2427.0,0.98041917]
[1728071661485,0.80933,2427.1,2427.0,0.98041917]
[1728071661995,0.3973,2427.1,2427.0,0.98041917]
[1728071662493,0.3973,2427.1,2427.0,0.98026402]
[1728071662987,0.3973,2427.1,2427.0,0.41205]
[1728071663187,0.3973,2427.1,2427.0,0.98026158]
[1728071663389,0.3973,2427.1,2427.0,0.9801986]
[1728071664293,0.3973,2427.1,2427.0,0.41205]
[1728071664993,0.3973,2427.1,2427.0,0.98013724]
[1728071665191,0.3973,2427.1,2427.0,0.41205]
[1728071666182,1.48,2427.2,2427.1,0.41203]
[1728071666497,1.89201,2427.2,2427.1,0.41203]
[1728071666787,0.41205,2427.0,2426.9,0.41206]
[1728071666993,1.89205,2427.0,2426.9,0.41206]
[1728071667191,1.48,2427.0,2426.9,0.41206]
[1728071667788,2.2666,2427.0,2426.9,0.41206]
[1728071668694,2.67865,2427.0,2426.9,0.41206]
[1728071668994,2.6695,2427.0,2426.9,0.41206]
[1728071669890,3.08155,2427.0,2426.9,0.41206]
[1728071670190,2.6695,2427.0,2426.9,0.41206]
[1728071672404,3.08155,2427.0,2426.9,0.41206]
[1728071674614,3.2078,2427.5,2426.8,1.48]
[1728071674813,3.2078,2427.5,2427.3,0.412]
[1728071674814,0.8146,2427.4,2427.3,0.412]
[1728071675018,0.3857,2427.7,2427.6,0.41195]
[1728071675314,0.7995,2427.8,2427.7,0.41193]
[1728071675914,1.21141,2427.8,2427.7,0.41193]
[1728071676120,0.7995,2427.8,2427.6,0.41194]
[1728071676322,1.21142,2427.8,2427.6,0.41194]
[1728071676509,1.89193,2427.7,2427.6,0.41194]
[1728071676714,1.48,2427.7,2427.6,0.41194]
[1728071679410,1.89193,2427.7,2427.6,0.41194]
[1728071680207,0.7995,2427.8,2427.5,0.8099]
[1728071680407,4.31374173,2428.3,2427.7,1.48]
[1728071680608,0.4111,2428.4,2428.2,0.41184]
[1728071680826,2.30291,2428.4,2428.3,0.4194]
[1728071681315,0.41183,2428.3,2428.2,0.8414]
[1728071682117,2.30292,2428.4,2428.2,0.8414]
[1728071682818,0.41183,2428.3,2428.2,0.8414]
[1728071683016,1.89183,2428.3,2428.2,0.8414]
[1728071683923,0.41183,2428.3,2428.2,0.8414]
[1728071685829,0.41183,2428.3,2428.1,0.3912]
[1728071686117,0.41184,2428.2,2428.1,0.3912]
[1728071686520,0.41183,2428.3,2428.1,0.80305]
[1728071687612,0.41182,2428.4,2428.2,0.41184]
[1728071687821,0.4215,2428.5,2428.1,0.3912]
[1728071688221,0.41183,2428.3,2428.1,0.80305]
[1728071688716,0.41183,2428.3,2428.2,0.41184]
[1728071689024,0.41183,2428.3,2428.1,0.80305]
[1728071690327,0.41184,2428.3,2428.1,0.80305]
[1728071691422,0.41184,2428.3,2428.1,0.3912]
[1728071691723,0.41184,2428.3,2428.1,0.80305]
[1728071692525,4.66101,2428.5,2428.1,0.80305]
[1728071692728,0.41184,2428.2,2428.1,0.80305]
[1728071693120,0.41184,2428.3,2428.1,4.92145]
[1728071693315,0.41184,2428.3,2428.1,0.80305]
[1728071697532,0.41184,2428.3,2428.2,0.41184]
[1728071697934,0.4215,2428.5,2428.4,0.41181]
[1728071698233,0.83329,2428.5,2428.3,0.41181]
[1728071698434,0.83329,2428.5,2428.4,0.4225]
[1728071701030,7.7491,2428.5,2428.2,3.2078]
[1728071701235,3.6315,2428.5,2428.2,3.2078]
[1728071701434,0.4215,2428.5,2428.2,3.2078]
[1728071701634,0.83331,2428.5,2428.3,0.41182]
[1728071702033,0.41181,2428.4,2428.3,0.41182]
[1728071702335,0.8333,2428.5,2428.3,0.41182]
[1728071702536,0.41181,2428.4,2428.3,0.41182]
[1728071702739,0.4215,2428.5,2428.3,0.41182]
[1728071703040,0.8333,2428.5,2428.3,0.41182]
[1728071703540,0.4215,2428.5,2428.4,0.41181]
[1728071703736,0.83329,2428.5,2428.4,0.41181]
[1728071703940,0.83331,2428.5,2428.3,0.41182]
[1728071704238,0.41181,2428.4,2428.3,0.41182]
[1728071705037,0.83331,2428.5,2428.3,0.41181]
[1728071705238,0.83331,2428.5,2428.4,0.41181]
[1728071705436,3.2078,2428.7,2428.4,3.21]
[1728071705640,1.02934,2428.9,2428.5,0.8065]
[1728071705641,0.3989,2428.8,2428.5,0.8065]
[1728071705835,0.41178,2428.6,2428.5,1.21829]
[1728071706739,1.48,2428.7,2428.5,0.8065]
[1728071706939,0.41178,2428.6,2428.5,0.8065]
[1728071707138,0.41179,2428.5,2428.4,0.401]
[1728071707336,1.19719,2428.5,2428.4,0.401]
[1728071708232,0.41181,2428.4,2428.3,0.41181]
[1728071708543,2.2654,2428.5,2428.3,0.41181]
[1728071708544,2.6772,2428.5,2428.3,0.41181]
[1728071709244,2.6772,2428.5,2428.4,0.41181]
[1728071709445,2.2654,2428.5,2428.4,0.41181]
[1728071709839,2.67719,2428.5,2428.2,0.401]
[1728071710143,2.2654,2428.5,2428.2,0.401]
[1728071710447,2.67721,2428.5,2428.3,0.41182]
[1728071710638,0.41181,2428.4,2428.3,0.41182]
[1728071710837,0.41182,2428.4,2428.2,0.81283]
[1728071711038,0.41182,2428.4,2428.3,0.41183]
[1728071711446,0.41183,2428.3,2428.2,0.401]
[1728071711944,0.41183,2428.3,2428.2,0.81284]
[1728071712342,0.41183,2428.3,2428.2,0.401]